{"text_format":"3","workbook":"xlsx","n_sheets":5,"sheets":["Számla","Ügyfelek","Számlák - Elsődleges","Számla adatai","A számlanyilvántartásról"],"not_rendered":{"defined_names":8},"read":"whole","date_system":"1900"}

{"sheet":"Számla","index":0,"n_rows":39,"n_cols":7,"rows_kept":39,"merged":[[1,1,1,2],[1,3,1,4],[1,5,1,6],[2,1,2,2],[2,3,2,4],[2,5,2,6],[3,3,3,4],[4,3,4,4],[5,3,5,4],[37,1,37,4],[38,1,38,4]]}
[null,"Cégnév"]
[null,"Utca és házszám",null,"T: Telefonszám",null,"E-mail-cím"]
[null,"Irányítószám, település",null,"F: Faxszám",null,"Webhely"]
[null,"Számlázási cím:",{"$f":"IFERROR(VLOOKUP(VLOOKUP(rngSzámla,SzámlákElsődleges[],2,FALSE),Ügyféllista[],3,TRUE),\"\")","v":"Contoso, Ltd"},{"$f":"\"Telefonszám: \"&IFERROR(VLOOKUP(VLOOKUP(rngSzámla,SzámlákElsődleges[],2,FALSE),Ügyféllista[],9,FALSE),\"\")","v":"Telefonszám: 55 / 555-189"},null,"Számlaszám:","3-456-2"]
[null,"Cím:",{"$f":"IFERROR(IF((VLOOKUP(VLOOKUP(rngSzámla,SzámlákElsődleges[],2,FALSE),Ügyféllista[],5,FALSE))=\"\",\"\",(VLOOKUP(VLOOKUP(rngSzámla,SzámlákElsődleges[],2,FALSE),Ügyféllista[],5,FALSE))),\"\")","v":"Dió sor 567."},{"$f":"\"Fax:                \"&IFERROR(VLOOKUP(VLOOKUP(rngSzámla,SzámlákElsődleges[],2,FALSE),Ügyféllista[],11,FALSE),\"\")","v":"Fax:                55 / 555-123"},null,"Számla dátuma:",{"$f":"IFERROR(IF(VLOOKUP(rngSzámla,SzámlákElsődleges[],3,FALSE)=\"\",\"\",VLOOKUP(rngSzámla,SzámlákElsődleges[],3,FALSE)),\"\")","v":{"v":43688,"d":"4368800.00%"}}]
[null,null,{"$f":"IFERROR(VLOOKUP(VLOOKUP(rngSzámla,SzámlákElsődleges[],2,FALSE),Ügyféllista[],6,FALSE)&\", \"& VLOOKUP(VLOOKUP(G4,SzámlákElsődleges[],2,FALSE),Ügyféllista[],7,FALSE)&\" \"&VLOOKUP(VLOOKUP(G4,SzámlákElsődleges[],2,FALSE),Ügyféllista[],8,FALSE),\"\")","v":"Doboz, Békés 098765"},{"$f":"\"E-mail-cím: \"&IFERROR(VLOOKUP(VLOOKUP(rngSzámla,SzámlákElsődleges[],2,FALSE),Ügyféllista[],10,FALSE),\"\")","v":"E-mail-cím: valaki@example.com"}]
[null,{"$f":"\"Számlázott tevékenység: \"&IFERROR(VLOOKUP(rngSzámla,SzámlákElsődleges[],4),\"\")","v":"Számlázott tevékenység: 2. projekt"},{"$nulls":4}," "]
[null,"Tétel száma","Leírás","Menny.","Egységár","Kedvezmény","Ár"]
[null,{"$f":"IFERROR(INDEX(Számlaadatai[],SMALL(IF(Számlaadatai[Számlaszám]=rngSzámla,ROW(Számlaadatai[])-ROW(Számlaadatai[#Headers])), ROW(1:1)), MATCH($B$8, Számlaadatai[#Headers], 0)),\"\")","v":"Z4567"},{"$f":"IFERROR(INDEX(Számlaadatai[],SMALL(IF(Számlaadatai[Számlaszám]=rngSzámla,ROW(Számlaadatai[])-ROW(Számlaadatai[#Headers])), ROW(1:1)), MATCH($C$8, Számlaadatai[#Headers], 0)),\"\")","v":"3-456-2. számla 1. adat"},{"$f":"IFERROR(INDEX(Számlaadatai[],SMALL(IF(Számlaadatai[Számlaszám]=rngSzámla,ROW(Számlaadatai[])-ROW(Számlaadatai[#Headers])), ROW(1:1)), MATCH($D$8, Számlaadatai[#Headers], 0)),\"\")","v":39},{"$f":"IFERROR(INDEX(Számlaadatai[],SMALL(IF(Számlaadatai[Számlaszám]=rngSzámla,ROW(Számlaadatai[])-ROW(Számlaadatai[#Headers])), ROW(1:1)), MATCH($E$8, Számlaadatai[#Headers], 0)),\"\")","v":{"v":5,"d":"5.00 Ft"}},{"$f":"IFERROR(INDEX(Számlaadatai[],SMALL(IF(Számlaadatai[Számlaszám]=rngSzámla,ROW(Számlaadatai[])-ROW(Számlaadatai[#Headers])), ROW(1:1)), MATCH($F$8, Számlaadatai[#Headers], 0)),\"\")","v":0},{"$f":"IFERROR((D9*E9)-F9,\"\")","v":{"v":195,"d":"195.00 Ft"}}]
[null,{"$f":"IFERROR(INDEX(Számlaadatai[],SMALL(IF(Számlaadatai[Számlaszám]=rngSzámla,ROW(Számlaadatai[])-ROW(Számlaadatai[#Headers])), ROW(2:2)), MATCH($B$8, Számlaadatai[#Headers], 0)),\"\")","v":"Z4568"},{"$f":"IFERROR(INDEX(Számlaadatai[],SMALL(IF(Számlaadatai[Számlaszám]=rngSzámla,ROW(Számlaadatai[])-ROW(Számlaadatai[#Headers])), ROW(2:2)), MATCH($C$8, Számlaadatai[#Headers], 0)),\"\")","v":"3-456-2. számla 2. adat"},{"$f":"IFERROR(INDEX(Számlaadatai[],SMALL(IF(Számlaadatai[Számlaszám]=rngSzámla,ROW(Számlaadatai[])-ROW(Számlaadatai[#Headers])), ROW(2:2)), MATCH($D$8, Számlaadatai[#Headers], 0)),\"\")","v":40},{"$f":"IFERROR(INDEX(Számlaadatai[],SMALL(IF(Számlaadatai[Számlaszám]=rngSzámla,ROW(Számlaadatai[])-ROW(Számlaadatai[#Headers])), ROW(2:2)), MATCH($E$8, Számlaadatai[#Headers], 0)),\"\")","v":{"v":4,"d":"4.00 Ft"}},{"$f":"IFERROR(INDEX(Számlaadatai[],SMALL(IF(Számlaadatai[Számlaszám]=rngSzámla,ROW(Számlaadatai[])-ROW(Számlaadatai[#Headers])), ROW(2:2)), MATCH($F$8, Számlaadatai[#Headers], 0)),\"\")","v":{"v":5,"d":"5.00 Ft"}},{"v":155,"d":"155.00 Ft"}]
[null,{"$f":"IFERROR(INDEX(Számlaadatai[],SMALL(IF(Számlaadatai[Számlaszám]=rngSzámla,ROW(Számlaadatai[])-ROW(Számlaadatai[#Headers])), ROW(3:3)), MATCH($B$8, Számlaadatai[#Headers], 0)),\"\")","v":"Z4569"},{"$f":"IFERROR(INDEX(Számlaadatai[],SMALL(IF(Számlaadatai[Számlaszám]=rngSzámla,ROW(Számlaadatai[])-ROW(Számlaadatai[#Headers])), ROW(3:3)), MATCH($C$8, Számlaadatai[#Headers], 0)),\"\")","v":"3-456-2. számla 3. adat"},{"$f":"IFERROR(INDEX(Számlaadatai[],SMALL(IF(Számlaadatai[Számlaszám]=rngSzámla,ROW(Számlaadatai[])-ROW(Számlaadatai[#Headers])), ROW(3:3)), MATCH($D$8, Számlaadatai[#Headers], 0)),\"\")","v":30},{"$f":"IFERROR(INDEX(Számlaadatai[],SMALL(IF(Számlaadatai[Számlaszám]=rngSzámla,ROW(Számlaadatai[])-ROW(Számlaadatai[#Headers])), ROW(3:3)), MATCH($E$8, Számlaadatai[#Headers], 0)),\"\")","v":{"v":6,"d":"6.00 Ft"}},{"$f":"IFERROR(INDEX(Számlaadatai[],SMALL(IF(Számlaadatai[Számlaszám]=rngSzámla,ROW(Számlaadatai[])-ROW(Számlaadatai[#Headers])), ROW(3:3)), MATCH($F$8, Számlaadatai[#Headers], 0)),\"\")","v":{"v":7,"d":"7.00 Ft"}},{"v":173,"d":"173.00 Ft"}]
[null,{"$f":"IFERROR(INDEX(Számlaadatai[],SMALL(IF(Számlaadatai[Számlaszám]=rngSzámla,ROW(Számlaadatai[])-ROW(Számlaadatai[#Headers])), ROW(4:4)), MATCH($B$8, Számlaadatai[#Headers], 0)),\"\")","v":"Z4570"},{"$f":"IFERROR(INDEX(Számlaadatai[],SMALL(IF(Számlaadatai[Számlaszám]=rngSzámla,ROW(Számlaadatai[])-ROW(Számlaadatai[#Headers])), ROW(4:4)), MATCH($C$8, Számlaadatai[#Headers], 0)),\"\")","v":"3-456-2. számla 4. adat"},{"$f":"IFERROR(INDEX(Számlaadatai[],SMALL(IF(Számlaadatai[Számlaszám]=rngSzámla,ROW(Számlaadatai[])-ROW(Számlaadatai[#Headers])), ROW(4:4)), MATCH($D$8, Számlaadatai[#Headers], 0)),\"\")","v":40},{"$f":"IFERROR(INDEX(Számlaadatai[],SMALL(IF(Számlaadatai[Számlaszám]=rngSzámla,ROW(Számlaadatai[])-ROW(Számlaadatai[#Headers])), ROW(4:4)), MATCH($E$8, Számlaadatai[#Headers], 0)),\"\")","v":{"v":7,"d":"7.00 Ft"}},{"$f":"IFERROR(INDEX(Számlaadatai[],SMALL(IF(Számlaadatai[Számlaszám]=rngSzámla,ROW(Számlaadatai[])-ROW(Számlaadatai[#Headers])), ROW(4:4)), MATCH($F$8, Számlaadatai[#Headers], 0)),\"\")","v":0},{"v":280,"d":"280.00 Ft"}]
[null,{"$f":"IFERROR(INDEX(Számlaadatai[],SMALL(IF(Számlaadatai[Számlaszám]=rngSzámla,ROW(Számlaadatai[])-ROW(Számlaadatai[#Headers])), ROW(5:5)), MATCH($B$8, Számlaadatai[#Headers], 0)),\"\")","v":"Z4571"},{"$f":"IFERROR(INDEX(Számlaadatai[],SMALL(IF(Számlaadatai[Számlaszám]=rngSzámla,ROW(Számlaadatai[])-ROW(Számlaadatai[#Headers])), ROW(5:5)), MATCH($C$8, Számlaadatai[#Headers], 0)),\"\")","v":"3-456-2. számla 5. adat"},{"$f":"IFERROR(INDEX(Számlaadatai[],SMALL(IF(Számlaadatai[Számlaszám]=rngSzámla,ROW(Számlaadatai[])-ROW(Számlaadatai[#Headers])), ROW(5:5)), MATCH($D$8, Számlaadatai[#Headers], 0)),\"\")","v":10},{"$f":"IFERROR(INDEX(Számlaadatai[],SMALL(IF(Számlaadatai[Számlaszám]=rngSzámla,ROW(Számlaadatai[])-ROW(Számlaadatai[#Headers])), ROW(5:5)), MATCH($E$8, Számlaadatai[#Headers], 0)),\"\")","v":{"v":4,"d":"4.00 Ft"}},{"$f":"IFERROR(INDEX(Számlaadatai[],SMALL(IF(Számlaadatai[Számlaszám]=rngSzámla,ROW(Számlaadatai[])-ROW(Számlaadatai[#Headers])), ROW(5:5)), MATCH($F$8, Számlaadatai[#Headers], 0)),\"\")","v":0},{"v":40,"d":"40.00 Ft"}]
[null,{"$f":"IFERROR(INDEX(Számlaadatai[],SMALL(IF(Számlaadatai[Számlaszám]=rngSzámla,ROW(Számlaadatai[])-ROW(Számlaadatai[#Headers])), ROW(6:6)), MATCH($B$8, Számlaadatai[#Headers], 0)),\"\")","v":"Z4572"},{"$f":"IFERROR(INDEX(Számlaadatai[],SMALL(IF(Számlaadatai[Számlaszám]=rngSzámla,ROW(Számlaadatai[])-ROW(Számlaadatai[#Headers])), ROW(6:6)), MATCH($C$8, Számlaadatai[#Headers], 0)),\"\")","v":"3-456-2. számla 6. adat"},{"$f":"IFERROR(INDEX(Számlaadatai[],SMALL(IF(Számlaadatai[Számlaszám]=rngSzámla,ROW(Számlaadatai[])-ROW(Számlaadatai[#Headers])), ROW(6:6)), MATCH($D$8, Számlaadatai[#Headers], 0)),\"\")","v":5},{"$f":"IFERROR(INDEX(Számlaadatai[],SMALL(IF(Számlaadatai[Számlaszám]=rngSzámla,ROW(Számlaadatai[])-ROW(Számlaadatai[#Headers])), ROW(6:6)), MATCH($E$8, Számlaadatai[#Headers], 0)),\"\")","v":{"v":8,"d":"8.00 Ft"}},{"$f":"IFERROR(INDEX(Számlaadatai[],SMALL(IF(Számlaadatai[Számlaszám]=rngSzámla,ROW(Számlaadatai[])-ROW(Számlaadatai[#Headers])), ROW(6:6)), MATCH($F$8, Számlaadatai[#Headers], 0)),\"\")","v":0},{"v":40,"d":"40.00 Ft"}]
[null,{"$f":"IFERROR(INDEX(Számlaadatai[],SMALL(IF(Számlaadatai[Számlaszám]=rngSzámla,ROW(Számlaadatai[])-ROW(Számlaadatai[#Headers])), ROW(7:7)), MATCH($B$8, Számlaadatai[#Headers], 0)),\"\")","v":"Z4573"},{"$f":"IFERROR(INDEX(Számlaadatai[],SMALL(IF(Számlaadatai[Számlaszám]=rngSzámla,ROW(Számlaadatai[])-ROW(Számlaadatai[#Headers])), ROW(7:7)), MATCH($C$8, Számlaadatai[#Headers], 0)),\"\")","v":"3-456-2. számla 7. adat"},{"$f":"IFERROR(INDEX(Számlaadatai[],SMALL(IF(Számlaadatai[Számlaszám]=rngSzámla,ROW(Számlaadatai[])-ROW(Számlaadatai[#Headers])), ROW(7:7)), MATCH($D$8, Számlaadatai[#Headers], 0)),\"\")","v":70},{"$f":"IFERROR(INDEX(Számlaadatai[],SMALL(IF(Számlaadatai[Számlaszám]=rngSzámla,ROW(Számlaadatai[])-ROW(Számlaadatai[#Headers])), ROW(7:7)), MATCH($E$8, Számlaadatai[#Headers], 0)),\"\")","v":{"v":6,"d":"6.00 Ft"}},{"$f":"IFERROR(INDEX(Számlaadatai[],SMALL(IF(Számlaadatai[Számlaszám]=rngSzámla,ROW(Számlaadatai[])-ROW(Számlaadatai[#Headers])), ROW(7:7)), MATCH($F$8, Számlaadatai[#Headers], 0)),\"\")","v":0},{"v":420,"d":"420.00 Ft"}]
[null,{"$f":"IFERROR(INDEX(Számlaadatai[],SMALL(IF(Számlaadatai[Számlaszám]=rngSzámla,ROW(Számlaadatai[])-ROW(Számlaadatai[#Headers])), ROW(8:8)), MATCH($B$8, Számlaadatai[#Headers], 0)),\"\")","v":"Z4574"},{"$f":"IFERROR(INDEX(Számlaadatai[],SMALL(IF(Számlaadatai[Számlaszám]=rngSzámla,ROW(Számlaadatai[])-ROW(Számlaadatai[#Headers])), ROW(8:8)), MATCH($C$8, Számlaadatai[#Headers], 0)),\"\")","v":"3-456-2. számla 8. adat"},{"$f":"IFERROR(INDEX(Számlaadatai[],SMALL(IF(Számlaadatai[Számlaszám]=rngSzámla,ROW(Számlaadatai[])-ROW(Számlaadatai[#Headers])), ROW(8:8)), MATCH($D$8, Számlaadatai[#Headers], 0)),\"\")","v":25},{"$f":"IFERROR(INDEX(Számlaadatai[],SMALL(IF(Számlaadatai[Számlaszám]=rngSzámla,ROW(Számlaadatai[])-ROW(Számlaadatai[#Headers])), ROW(8:8)), MATCH($E$8, Számlaadatai[#Headers], 0)),\"\")","v":{"v":4,"d":"4.00 Ft"}},{"$f":"IFERROR(INDEX(Számlaadatai[],SMALL(IF(Számlaadatai[Számlaszám]=rngSzámla,ROW(Számlaadatai[])-ROW(Számlaadatai[#Headers])), ROW(8:8)), MATCH($F$8, Számlaadatai[#Headers], 0)),\"\")","v":0},{"v":100,"d":"100.00 Ft"}]
[null,{"$f":"IFERROR(INDEX(Számlaadatai[],SMALL(IF(Számlaadatai[Számlaszám]=rngSzámla,ROW(Számlaadatai[])-ROW(Számlaadatai[#Headers])), ROW(9:9)), MATCH($B$8, Számlaadatai[#Headers], 0)),\"\")","v":"Z4575"},{"$f":"IFERROR(INDEX(Számlaadatai[],SMALL(IF(Számlaadatai[Számlaszám]=rngSzámla,ROW(Számlaadatai[])-ROW(Számlaadatai[#Headers])), ROW(9:9)), MATCH($C$8, Számlaadatai[#Headers], 0)),\"\")","v":"3-456-2. számla 9. adat"},{"$f":"IFERROR(INDEX(Számlaadatai[],SMALL(IF(Számlaadatai[Számlaszám]=rngSzámla,ROW(Számlaadatai[])-ROW(Számlaadatai[#Headers])), ROW(9:9)), MATCH($D$8, Számlaadatai[#Headers], 0)),\"\")","v":5},{"$f":"IFERROR(INDEX(Számlaadatai[],SMALL(IF(Számlaadatai[Számlaszám]=rngSzámla,ROW(Számlaadatai[])-ROW(Számlaadatai[#Headers])), ROW(9:9)), MATCH($E$8, Számlaadatai[#Headers], 0)),\"\")","v":{"v":7,"d":"7.00 Ft"}},{"$f":"IFERROR(INDEX(Számlaadatai[],SMALL(IF(Számlaadatai[Számlaszám]=rngSzámla,ROW(Számlaadatai[])-ROW(Számlaadatai[#Headers])), ROW(9:9)), MATCH($F$8, Számlaadatai[#Headers], 0)),\"\")","v":{"v":3,"d":"3.00 Ft"}},{"v":32,"d":"32.00 Ft"}]
[null,{"$f":"IFERROR(INDEX(Számlaadatai[],SMALL(IF(Számlaadatai[Számlaszám]=rngSzámla,ROW(Számlaadatai[])-ROW(Számlaadatai[#Headers])), ROW(10:10)), MATCH($B$8, Számlaadatai[#Headers], 0)),\"\")","v":"Z4576"},{"$f":"IFERROR(INDEX(Számlaadatai[],SMALL(IF(Számlaadatai[Számlaszám]=rngSzámla,ROW(Számlaadatai[])-ROW(Számlaadatai[#Headers])), ROW(10:10)), MATCH($C$8, Számlaadatai[#Headers], 0)),\"\")","v":"3-456-2. számla 10. adat"},{"$f":"IFERROR(INDEX(Számlaadatai[],SMALL(IF(Számlaadatai[Számlaszám]=rngSzámla,ROW(Számlaadatai[])-ROW(Számlaadatai[#Headers])), ROW(10:10)), MATCH($D$8, Számlaadatai[#Headers], 0)),\"\")","v":80},{"$f":"IFERROR(INDEX(Számlaadatai[],SMALL(IF(Számlaadatai[Számlaszám]=rngSzámla,ROW(Számlaadatai[])-ROW(Számlaadatai[#Headers])), ROW(10:10)), MATCH($E$8, Számlaadatai[#Headers], 0)),\"\")","v":{"v":1,"d":"1.00 Ft"}},{"$f":"IFERROR(INDEX(Számlaadatai[],SMALL(IF(Számlaadatai[Számlaszám]=rngSzámla,ROW(Számlaadatai[])-ROW(Számlaadatai[#Headers])), ROW(10:10)), MATCH($F$8, Számlaadatai[#Headers], 0)),\"\")","v":0},{"v":80,"d":"80.00 Ft"}]
[null,{"$f":"IFERROR(INDEX(Számlaadatai[],SMALL(IF(Számlaadatai[Számlaszám]=rngSzámla,ROW(Számlaadatai[])-ROW(Számlaadatai[#Headers])), ROW(11:11)), MATCH($B$8, Számlaadatai[#Headers], 0)),\"\")","v":"Z4577"},{"$f":"IFERROR(INDEX(Számlaadatai[],SMALL(IF(Számlaadatai[Számlaszám]=rngSzámla,ROW(Számlaadatai[])-ROW(Számlaadatai[#Headers])), ROW(11:11)), MATCH($C$8, Számlaadatai[#Headers], 0)),\"\")","v":"3-456-2. számla 11. adat"},{"$f":"IFERROR(INDEX(Számlaadatai[],SMALL(IF(Számlaadatai[Számlaszám]=rngSzámla,ROW(Számlaadatai[])-ROW(Számlaadatai[#Headers])), ROW(11:11)), MATCH($D$8, Számlaadatai[#Headers], 0)),\"\")","v":65},{"$f":"IFERROR(INDEX(Számlaadatai[],SMALL(IF(Számlaadatai[Számlaszám]=rngSzámla,ROW(Számlaadatai[])-ROW(Számlaadatai[#Headers])), ROW(11:11)), MATCH($E$8, Számlaadatai[#Headers], 0)),\"\")","v":{"v":7,"d":"7.00 Ft"}},{"$f":"IFERROR(INDEX(Számlaadatai[],SMALL(IF(Számlaadatai[Számlaszám]=rngSzámla,ROW(Számlaadatai[])-ROW(Számlaadatai[#Headers])), ROW(11:11)), MATCH($F$8, Számlaadatai[#Headers], 0)),\"\")","v":0},{"v":455,"d":"455.00 Ft"}]
[null,{"$f":"IFERROR(INDEX(Számlaadatai[],SMALL(IF(Számlaadatai[Számlaszám]=rngSzámla,ROW(Számlaadatai[])-ROW(Számlaadatai[#Headers])), ROW(12:12)), MATCH($B$8, Számlaadatai[#Headers], 0)),\"\")","v":"Z4578"},{"$f":"IFERROR(INDEX(Számlaadatai[],SMALL(IF(Számlaadatai[Számlaszám]=rngSzámla,ROW(Számlaadatai[])-ROW(Számlaadatai[#Headers])), ROW(12:12)), MATCH($C$8, Számlaadatai[#Headers], 0)),\"\")","v":"3-456-2. számla 12. adat"},{"$f":"IFERROR(INDEX(Számlaadatai[],SMALL(IF(Számlaadatai[Számlaszám]=rngSzámla,ROW(Számlaadatai[])-ROW(Számlaadatai[#Headers])), ROW(12:12)), MATCH($D$8, Számlaadatai[#Headers], 0)),\"\")","v":44},{"$f":"IFERROR(INDEX(Számlaadatai[],SMALL(IF(Számlaadatai[Számlaszám]=rngSzámla,ROW(Számlaadatai[])-ROW(Számlaadatai[#Headers])), ROW(12:12)), MATCH($E$8, Számlaadatai[#Headers], 0)),\"\")","v":{"v":1,"d":"1.00 Ft"}},{"$f":"IFERROR(INDEX(Számlaadatai[],SMALL(IF(Számlaadatai[Számlaszám]=rngSzámla,ROW(Számlaadatai[])-ROW(Számlaadatai[#Headers])), ROW(12:12)), MATCH($F$8, Számlaadatai[#Headers], 0)),\"\")","v":0},{"v":44,"d":"44.00 Ft"}]
[null,{"$f":"IFERROR(INDEX(Számlaadatai[],SMALL(IF(Számlaadatai[Számlaszám]=rngSzámla,ROW(Számlaadatai[])-ROW(Számlaadatai[#Headers])), ROW(13:13)), MATCH($B$8, Számlaadatai[#Headers], 0)),\"\")","v":""},{"$f":"IFERROR(INDEX(Számlaadatai[],SMALL(IF(Számlaadatai[Számlaszám]=rngSzámla,ROW(Számlaadatai[])-ROW(Számlaadatai[#Headers])), ROW(13:13)), MATCH($C$8, Számlaadatai[#Headers], 0)),\"\")","v":""},{"$f":"IFERROR(INDEX(Számlaadatai[],SMALL(IF(Számlaadatai[Számlaszám]=rngSzámla,ROW(Számlaadatai[])-ROW(Számlaadatai[#Headers])), ROW(13:13)), MATCH($D$8, Számlaadatai[#Headers], 0)),\"\")","v":""},{"$f":"IFERROR(INDEX(Számlaadatai[],SMALL(IF(Számlaadatai[Számlaszám]=rngSzámla,ROW(Számlaadatai[])-ROW(Számlaadatai[#Headers])), ROW(13:13)), MATCH($E$8, Számlaadatai[#Headers], 0)),\"\")","v":""},{"$f":"IFERROR(INDEX(Számlaadatai[],SMALL(IF(Számlaadatai[Számlaszám]=rngSzámla,ROW(Számlaadatai[])-ROW(Számlaadatai[#Headers])), ROW(13:13)), MATCH($F$8, Számlaadatai[#Headers], 0)),\"\")","v":""},""]
[null,{"$f":"IFERROR(INDEX(Számlaadatai[],SMALL(IF(Számlaadatai[Számlaszám]=rngSzámla,ROW(Számlaadatai[])-ROW(Számlaadatai[#Headers])), ROW(14:14)), MATCH($B$8, Számlaadatai[#Headers], 0)),\"\")","v":""},{"$f":"IFERROR(INDEX(Számlaadatai[],SMALL(IF(Számlaadatai[Számlaszám]=rngSzámla,ROW(Számlaadatai[])-ROW(Számlaadatai[#Headers])), ROW(14:14)), MATCH($C$8, Számlaadatai[#Headers], 0)),\"\")","v":""},{"$f":"IFERROR(INDEX(Számlaadatai[],SMALL(IF(Számlaadatai[Számlaszám]=rngSzámla,ROW(Számlaadatai[])-ROW(Számlaadatai[#Headers])), ROW(14:14)), MATCH($D$8, Számlaadatai[#Headers], 0)),\"\")","v":""},{"$f":"IFERROR(INDEX(Számlaadatai[],SMALL(IF(Számlaadatai[Számlaszám]=rngSzámla,ROW(Számlaadatai[])-ROW(Számlaadatai[#Headers])), ROW(14:14)), MATCH($E$8, Számlaadatai[#Headers], 0)),\"\")","v":""},{"$f":"IFERROR(INDEX(Számlaadatai[],SMALL(IF(Számlaadatai[Számlaszám]=rngSzámla,ROW(Számlaadatai[])-ROW(Számlaadatai[#Headers])), ROW(14:14)), MATCH($F$8, Számlaadatai[#Headers], 0)),\"\")","v":""},""]
[null,{"$f":"IFERROR(INDEX(Számlaadatai[],SMALL(IF(Számlaadatai[Számlaszám]=rngSzámla,ROW(Számlaadatai[])-ROW(Számlaadatai[#Headers])), ROW(15:15)), MATCH($B$8, Számlaadatai[#Headers], 0)),\"\")","v":""},{"$f":"IFERROR(INDEX(Számlaadatai[],SMALL(IF(Számlaadatai[Számlaszám]=rngSzámla,ROW(Számlaadatai[])-ROW(Számlaadatai[#Headers])), ROW(15:15)), MATCH($C$8, Számlaadatai[#Headers], 0)),\"\")","v":""},{"$f":"IFERROR(INDEX(Számlaadatai[],SMALL(IF(Számlaadatai[Számlaszám]=rngSzámla,ROW(Számlaadatai[])-ROW(Számlaadatai[#Headers])), ROW(15:15)), MATCH($D$8, Számlaadatai[#Headers], 0)),\"\")","v":""},{"$f":"IFERROR(INDEX(Számlaadatai[],SMALL(IF(Számlaadatai[Számlaszám]=rngSzámla,ROW(Számlaadatai[])-ROW(Számlaadatai[#Headers])), ROW(15:15)), MATCH($E$8, Számlaadatai[#Headers], 0)),\"\")","v":""},{"$f":"IFERROR(INDEX(Számlaadatai[],SMALL(IF(Számlaadatai[Számlaszám]=rngSzámla,ROW(Számlaadatai[])-ROW(Számlaadatai[#Headers])), ROW(15:15)), MATCH($F$8, Számlaadatai[#Headers], 0)),\"\")","v":""},""]
[null,{"$f":"IFERROR(INDEX(Számlaadatai[],SMALL(IF(Számlaadatai[Számlaszám]=rngSzámla,ROW(Számlaadatai[])-ROW(Számlaadatai[#Headers])), ROW(16:16)), MATCH($B$8, Számlaadatai[#Headers], 0)),\"\")","v":""},{"$f":"IFERROR(INDEX(Számlaadatai[],SMALL(IF(Számlaadatai[Számlaszám]=rngSzámla,ROW(Számlaadatai[])-ROW(Számlaadatai[#Headers])), ROW(16:16)), MATCH($C$8, Számlaadatai[#Headers], 0)),\"\")","v":""},{"$f":"IFERROR(INDEX(Számlaadatai[],SMALL(IF(Számlaadatai[Számlaszám]=rngSzámla,ROW(Számlaadatai[])-ROW(Számlaadatai[#Headers])), ROW(16:16)), MATCH($D$8, Számlaadatai[#Headers], 0)),\"\")","v":""},{"$f":"IFERROR(INDEX(Számlaadatai[],SMALL(IF(Számlaadatai[Számlaszám]=rngSzámla,ROW(Számlaadatai[])-ROW(Számlaadatai[#Headers])), ROW(16:16)), MATCH($E$8, Számlaadatai[#Headers], 0)),\"\")","v":""},{"$f":"IFERROR(INDEX(Számlaadatai[],SMALL(IF(Számlaadatai[Számlaszám]=rngSzámla,ROW(Számlaadatai[])-ROW(Számlaadatai[#Headers])), ROW(16:16)), MATCH($F$8, Számlaadatai[#Headers], 0)),\"\")","v":""},""]
[null,{"$f":"IFERROR(INDEX(Számlaadatai[],SMALL(IF(Számlaadatai[Számlaszám]=rngSzámla,ROW(Számlaadatai[])-ROW(Számlaadatai[#Headers])), ROW(17:17)), MATCH($B$8, Számlaadatai[#Headers], 0)),\"\")","v":""},{"$f":"IFERROR(INDEX(Számlaadatai[],SMALL(IF(Számlaadatai[Számlaszám]=rngSzámla,ROW(Számlaadatai[])-ROW(Számlaadatai[#Headers])), ROW(17:17)), MATCH($C$8, Számlaadatai[#Headers], 0)),\"\")","v":""},{"$f":"IFERROR(INDEX(Számlaadatai[],SMALL(IF(Számlaadatai[Számlaszám]=rngSzámla,ROW(Számlaadatai[])-ROW(Számlaadatai[#Headers])), ROW(17:17)), MATCH($D$8, Számlaadatai[#Headers], 0)),\"\")","v":""},{"$f":"IFERROR(INDEX(Számlaadatai[],SMALL(IF(Számlaadatai[Számlaszám]=rngSzámla,ROW(Számlaadatai[])-ROW(Számlaadatai[#Headers])), ROW(17:17)), MATCH($E$8, Számlaadatai[#Headers], 0)),\"\")","v":""},{"$f":"IFERROR(INDEX(Számlaadatai[],SMALL(IF(Számlaadatai[Számlaszám]=rngSzámla,ROW(Számlaadatai[])-ROW(Számlaadatai[#Headers])), ROW(17:17)), MATCH($F$8, Számlaadatai[#Headers], 0)),\"\")","v":""},""]
[null,{"$f":"IFERROR(INDEX(Számlaadatai[],SMALL(IF(Számlaadatai[Számlaszám]=rngSzámla,ROW(Számlaadatai[])-ROW(Számlaadatai[#Headers])), ROW(18:18)), MATCH($B$8, Számlaadatai[#Headers], 0)),\"\")","v":""},{"$f":"IFERROR(INDEX(Számlaadatai[],SMALL(IF(Számlaadatai[Számlaszám]=rngSzámla,ROW(Számlaadatai[])-ROW(Számlaadatai[#Headers])), ROW(18:18)), MATCH($C$8, Számlaadatai[#Headers], 0)),\"\")","v":""},{"$f":"IFERROR(INDEX(Számlaadatai[],SMALL(IF(Számlaadatai[Számlaszám]=rngSzámla,ROW(Számlaadatai[])-ROW(Számlaadatai[#Headers])), ROW(18:18)), MATCH($D$8, Számlaadatai[#Headers], 0)),\"\")","v":""},{"$f":"IFERROR(INDEX(Számlaadatai[],SMALL(IF(Számlaadatai[Számlaszám]=rngSzámla,ROW(Számlaadatai[])-ROW(Számlaadatai[#Headers])), ROW(18:18)), MATCH($E$8, Számlaadatai[#Headers], 0)),\"\")","v":""},{"$f":"IFERROR(INDEX(Számlaadatai[],SMALL(IF(Számlaadatai[Számlaszám]=rngSzámla,ROW(Számlaadatai[])-ROW(Számlaadatai[#Headers])), ROW(18:18)), MATCH($F$8, Számlaadatai[#Headers], 0)),\"\")","v":""},""]
[null,{"$f":"IFERROR(INDEX(Számlaadatai[],SMALL(IF(Számlaadatai[Számlaszám]=rngSzámla,ROW(Számlaadatai[])-ROW(Számlaadatai[#Headers])), ROW(19:19)), MATCH($B$8, Számlaadatai[#Headers], 0)),\"\")","v":""},{"$f":"IFERROR(INDEX(Számlaadatai[],SMALL(IF(Számlaadatai[Számlaszám]=rngSzámla,ROW(Számlaadatai[])-ROW(Számlaadatai[#Headers])), ROW(19:19)), MATCH($C$8, Számlaadatai[#Headers], 0)),\"\")","v":""},{"$f":"IFERROR(INDEX(Számlaadatai[],SMALL(IF(Számlaadatai[Számlaszám]=rngSzámla,ROW(Számlaadatai[])-ROW(Számlaadatai[#Headers])), ROW(19:19)), MATCH($D$8, Számlaadatai[#Headers], 0)),\"\")","v":""},{"$f":"IFERROR(INDEX(Számlaadatai[],SMALL(IF(Számlaadatai[Számlaszám]=rngSzámla,ROW(Számlaadatai[])-ROW(Számlaadatai[#Headers])), ROW(19:19)), MATCH($E$8, Számlaadatai[#Headers], 0)),\"\")","v":""},{"$f":"IFERROR(INDEX(Számlaadatai[],SMALL(IF(Számlaadatai[Számlaszám]=rngSzámla,ROW(Számlaadatai[])-ROW(Számlaadatai[#Headers])), ROW(19:19)), MATCH($F$8, Számlaadatai[#Headers], 0)),\"\")","v":""},""]
[null,{"$f":"IFERROR(INDEX(Számlaadatai[],SMALL(IF(Számlaadatai[Számlaszám]=rngSzámla,ROW(Számlaadatai[])-ROW(Számlaadatai[#Headers])), ROW(20:20)), MATCH($B$8, Számlaadatai[#Headers], 0)),\"\")","v":""},{"$f":"IFERROR(INDEX(Számlaadatai[],SMALL(IF(Számlaadatai[Számlaszám]=rngSzámla,ROW(Számlaadatai[])-ROW(Számlaadatai[#Headers])), ROW(20:20)), MATCH($C$8, Számlaadatai[#Headers], 0)),\"\")","v":""},{"$f":"IFERROR(INDEX(Számlaadatai[],SMALL(IF(Számlaadatai[Számlaszám]=rngSzámla,ROW(Számlaadatai[])-ROW(Számlaadatai[#Headers])), ROW(20:20)), MATCH($D$8, Számlaadatai[#Headers], 0)),\"\")","v":""},{"$f":"IFERROR(INDEX(Számlaadatai[],SMALL(IF(Számlaadatai[Számlaszám]=rngSzámla,ROW(Számlaadatai[])-ROW(Számlaadatai[#Headers])), ROW(20:20)), MATCH($E$8, Számlaadatai[#Headers], 0)),\"\")","v":""},{"$f":"IFERROR(INDEX(Számlaadatai[],SMALL(IF(Számlaadatai[Számlaszám]=rngSzámla,ROW(Számlaadatai[])-ROW(Számlaadatai[#Headers])), ROW(20:20)), MATCH($F$8, Számlaadatai[#Headers], 0)),\"\")","v":""},""]
[null,{"$f":"IFERROR(INDEX(Számlaadatai[],SMALL(IF(Számlaadatai[Számlaszám]=rngSzámla,ROW(Számlaadatai[])-ROW(Számlaadatai[#Headers])), ROW(21:21)), MATCH($B$8, Számlaadatai[#Headers], 0)),\"\")","v":""},{"$f":"IFERROR(INDEX(Számlaadatai[],SMALL(IF(Számlaadatai[Számlaszám]=rngSzámla,ROW(Számlaadatai[])-ROW(Számlaadatai[#Headers])), ROW(21:21)), MATCH($C$8, Számlaadatai[#Headers], 0)),\"\")","v":""},{"$f":"IFERROR(INDEX(Számlaadatai[],SMALL(IF(Számlaadatai[Számlaszám]=rngSzámla,ROW(Számlaadatai[])-ROW(Számlaadatai[#Headers])), ROW(21:21)), MATCH($D$8, Számlaadatai[#Headers], 0)),\"\")","v":""},{"$f":"IFERROR(INDEX(Számlaadatai[],SMALL(IF(Számlaadatai[Számlaszám]=rngSzámla,ROW(Számlaadatai[])-ROW(Számlaadatai[#Headers])), ROW(21:21)), MATCH($E$8, Számlaadatai[#Headers], 0)),\"\")","v":""},{"$f":"IFERROR(INDEX(Számlaadatai[],SMALL(IF(Számlaadatai[Számlaszám]=rngSzámla,ROW(Számlaadatai[])-ROW(Számlaadatai[#Headers])), ROW(21:21)), MATCH($F$8, Számlaadatai[#Headers], 0)),\"\")","v":""},""]
[null,{"$f":"IFERROR(INDEX(Számlaadatai[],SMALL(IF(Számlaadatai[Számlaszám]=rngSzámla,ROW(Számlaadatai[])-ROW(Számlaadatai[#Headers])), ROW(22:22)), MATCH($B$8, Számlaadatai[#Headers], 0)),\"\")","v":""},{"$f":"IFERROR(INDEX(Számlaadatai[],SMALL(IF(Számlaadatai[Számlaszám]=rngSzámla,ROW(Számlaadatai[])-ROW(Számlaadatai[#Headers])), ROW(22:22)), MATCH($C$8, Számlaadatai[#Headers], 0)),\"\")","v":""},{"$f":"IFERROR(INDEX(Számlaadatai[],SMALL(IF(Számlaadatai[Számlaszám]=rngSzámla,ROW(Számlaadatai[])-ROW(Számlaadatai[#Headers])), ROW(22:22)), MATCH($D$8, Számlaadatai[#Headers], 0)),\"\")","v":""},{"$f":"IFERROR(INDEX(Számlaadatai[],SMALL(IF(Számlaadatai[Számlaszám]=rngSzámla,ROW(Számlaadatai[])-ROW(Számlaadatai[#Headers])), ROW(22:22)), MATCH($E$8, Számlaadatai[#Headers], 0)),\"\")","v":""},{"$f":"IFERROR(INDEX(Számlaadatai[],SMALL(IF(Számlaadatai[Számlaszám]=rngSzámla,ROW(Számlaadatai[])-ROW(Számlaadatai[#Headers])), ROW(22:22)), MATCH($F$8, Számlaadatai[#Headers], 0)),\"\")","v":""},""]
[null,{"$f":"IFERROR(INDEX(Számlaadatai[],SMALL(IF(Számlaadatai[Számlaszám]=rngSzámla,ROW(Számlaadatai[])-ROW(Számlaadatai[#Headers])), ROW(23:23)), MATCH($B$8, Számlaadatai[#Headers], 0)),\"\")","v":""},{"$f":"IFERROR(INDEX(Számlaadatai[],SMALL(IF(Számlaadatai[Számlaszám]=rngSzámla,ROW(Számlaadatai[])-ROW(Számlaadatai[#Headers])), ROW(23:23)), MATCH($C$8, Számlaadatai[#Headers], 0)),\"\")","v":""},{"$f":"IFERROR(INDEX(Számlaadatai[],SMALL(IF(Számlaadatai[Számlaszám]=rngSzámla,ROW(Számlaadatai[])-ROW(Számlaadatai[#Headers])), ROW(23:23)), MATCH($D$8, Számlaadatai[#Headers], 0)),\"\")","v":""},{"$f":"IFERROR(INDEX(Számlaadatai[],SMALL(IF(Számlaadatai[Számlaszám]=rngSzámla,ROW(Számlaadatai[])-ROW(Számlaadatai[#Headers])), ROW(23:23)), MATCH($E$8, Számlaadatai[#Headers], 0)),\"\")","v":""},{"$f":"IFERROR(INDEX(Számlaadatai[],SMALL(IF(Számlaadatai[Számlaszám]=rngSzámla,ROW(Számlaadatai[])-ROW(Számlaadatai[#Headers])), ROW(23:23)), MATCH($F$8, Számlaadatai[#Headers], 0)),\"\")","v":""},""]
[null,{"$f":"IFERROR(INDEX(Számlaadatai[],SMALL(IF(Számlaadatai[Számlaszám]=rngSzámla,ROW(Számlaadatai[])-ROW(Számlaadatai[#Headers])), ROW(24:24)), MATCH($B$8, Számlaadatai[#Headers], 0)),\"\")","v":""},{"$f":"IFERROR(INDEX(Számlaadatai[],SMALL(IF(Számlaadatai[Számlaszám]=rngSzámla,ROW(Számlaadatai[])-ROW(Számlaadatai[#Headers])), ROW(24:24)), MATCH($C$8, Számlaadatai[#Headers], 0)),\"\")","v":""},{"$f":"IFERROR(INDEX(Számlaadatai[],SMALL(IF(Számlaadatai[Számlaszám]=rngSzámla,ROW(Számlaadatai[])-ROW(Számlaadatai[#Headers])), ROW(24:24)), MATCH($D$8, Számlaadatai[#Headers], 0)),\"\")","v":""},{"$f":"IFERROR(INDEX(Számlaadatai[],SMALL(IF(Számlaadatai[Számlaszám]=rngSzámla,ROW(Számlaadatai[])-ROW(Számlaadatai[#Headers])), ROW(24:24)), MATCH($E$8, Számlaadatai[#Headers], 0)),\"\")","v":""},{"$f":"IFERROR(INDEX(Számlaadatai[],SMALL(IF(Számlaadatai[Számlaszám]=rngSzámla,ROW(Számlaadatai[])-ROW(Számlaadatai[#Headers])), ROW(24:24)), MATCH($F$8, Számlaadatai[#Headers], 0)),\"\")","v":""},""]
[null,{"$f":"IFERROR(INDEX(Számlaadatai[],SMALL(IF(Számlaadatai[Számlaszám]=rngSzámla,ROW(Számlaadatai[])-ROW(Számlaadatai[#Headers])), ROW(25:25)), MATCH($B$8, Számlaadatai[#Headers], 0)),\"\")","v":""},{"$f":"IFERROR(INDEX(Számlaadatai[],SMALL(IF(Számlaadatai[Számlaszám]=rngSzámla,ROW(Számlaadatai[])-ROW(Számlaadatai[#Headers])), ROW(25:25)), MATCH($C$8, Számlaadatai[#Headers], 0)),\"\")","v":""},{"$f":"IFERROR(INDEX(Számlaadatai[],SMALL(IF(Számlaadatai[Számlaszám]=rngSzámla,ROW(Számlaadatai[])-ROW(Számlaadatai[#Headers])), ROW(25:25)), MATCH($D$8, Számlaadatai[#Headers], 0)),\"\")","v":""},{"$f":"IFERROR(INDEX(Számlaadatai[],SMALL(IF(Számlaadatai[Számlaszám]=rngSzámla,ROW(Számlaadatai[])-ROW(Számlaadatai[#Headers])), ROW(25:25)), MATCH($E$8, Számlaadatai[#Headers], 0)),\"\")","v":""},{"$f":"IFERROR(INDEX(Számlaadatai[],SMALL(IF(Számlaadatai[Számlaszám]=rngSzámla,ROW(Számlaadatai[])-ROW(Számlaadatai[#Headers])), ROW(25:25)), MATCH($F$8, Számlaadatai[#Headers], 0)),\"\")","v":""},""]
[{"$nulls":5},"Számla részösszege",{"$f":"SUM(ProjektSzámla[Ár])","v":{"v":2014,"d":"2,014.00 Ft"}}]
[{"$nulls":5},"Áfakulcs",{"$f":"VLOOKUP(rngSzámla,SzámlákElsődleges[],5)","v":{"v":0.0875,"d":"8.75%"}}]
[{"$nulls":5},"Áfa",{"$f":"G34*G35","v":{"v":176.225,"d":"176.23 Ft"}}]
[{"$nulls":5},"Egyéb",{"$f":"VLOOKUP(rngSzámla,SzámlákElsődleges[],6)","v":0}]
[null,{"$f":"\"Minden csekk kedvezményezettje legyen a(z) \"&Cégnév&\".\"","v":"Minden csekk kedvezményezettje legyen a(z) Cégnév."},{"$nulls":3},"Kapott előleg",{"$f":"VLOOKUP(rngSzámla,SzámlákElsődleges[],7)","v":0}]
[null,"Az összeg <#> napon belül esedékes. A lejárt határidejű számlákra havi <#>% kamatot számítunk fel.",{"$nulls":3},"ÖSSZEG",{"$f":"(G34+G36+G37)-G38","v":{"v":2190.225,"d":"2,190.23 Ft"}}]

{"sheet":"Ügyfelek","index":1,"n_rows":6,"n_cols":12,"rows_kept":6}
[]
[null,null,"Ügyfelek"]
[null,"Keresés","Vállalat száma","Cégnév","Kapcsolattartó neve","Cím","Város","Megye","Irányítószám","Telefonszám","E-mail-cím","Fax"]
[null,{"$f":"C4& \" - \"&D4","v":"1 - Tailspin Toys "},1,"Tailspin Toys ","Erdős Ferenc","Cseresznye utca 345.","Harta","Bács-Kiskun","123456","55 / 555-178","valaki@example.com","55 / 555-187"]
[null,"2 - Contoso, Ltd",2,"Contoso, Ltd","Pásztor Erika","Dió sor 567.","Doboz","Békés","098765","55 / 555-189","valaki@example.com","55 / 555-123"]
[null,"Összesítés",{"$f":"\"Ügyfelek összesen: \"&SUBTOTAL(103,Ügyféllista[Vállalat száma])","v":"Ügyfelek összesen: 2"}]

{"sheet":"Számlák - Elsődleges","index":2,"n_rows":6,"n_cols":11,"rows_kept":6}
[]
[null,"Számlák"]
[null,"Számlaszám","Vállalat","Számla dátuma","Projekt leírása","Áfakulcs","Egyéb","Előleg","Részlet összesen","Számla összege","Megjegyzések"]
[null,"3-456-1","1 - Tailspin Toys ",{"$f":"TODAY()","v":{"v":43678,"d":"4367800.00%"}},"1. projekt",{"v":0.0875,"d":"8.75%"},{"v":100,"d":"100.00 Ft"},{"v":100,"d":"100.00 Ft"},{"$f":"SUMIF(Számlaadatai[Számlaszám],\"=\"&SzámlákElsődleges[[#This Row],[Számlaszám]],Számlaadatai[Összeg])","v":{"v":5200,"d":"5,200.00 Ft"}},{"$f":"(SzámlákElsődleges[[#This Row],[Részlet összesen]]*(1+SzámlákElsődleges[[#This Row],[Áfakulcs]]))+SzámlákElsődleges[[#This Row],[Egyéb]]-SzámlákElsődleges[[#This Row],[Előleg]]","v":{"v":5654.999999999999,"d":"5,655.00 Ft"}}]
[null,"3-456-2","2 - Contoso, Ltd",{"$f":"TODAY()+10","v":{"v":43688,"d":"4368800.00%"}},"2. projekt",{"v":0.0875,"d":"8.75%"},null,null,{"$f":"SUMIF(Számlaadatai[Számlaszám],\"=\"&SzámlákElsődleges[[#This Row],[Számlaszám]],Számlaadatai[Összeg])","v":{"v":2014,"d":"2,014.00 Ft"}},{"$f":"(SzámlákElsődleges[[#This Row],[Részlet összesen]]*(1+SzámlákElsődleges[[#This Row],[Áfakulcs]]))+SzámlákElsődleges[[#This Row],[Egyéb]]-SzámlákElsődleges[[#This Row],[Előleg]]","v":{"v":2190.225,"d":"2,190.23 Ft"}}]
[null,"Összesítés",{"$f":"\"Számlák összesen: \"&SUBTOTAL(103,SzámlákElsődleges[Számlaszám])","v":"Számlák összesen: 2"},{"$nulls":3},{"$f":"SUBTOTAL(109,SzámlákElsődleges[Egyéb])","v":{"v":100,"d":"100.00 Ft"}},{"$f":"SUBTOTAL(109,SzámlákElsődleges[Előleg])","v":{"v":100,"d":"100.00 Ft"}},{"$f":"SUBTOTAL(109,SzámlákElsődleges[Részlet összesen])","v":{"v":7214,"d":"7,214.00 Ft"}},{"$f":"SUBTOTAL(109,SzámlákElsődleges[Számla összege])","v":{"v":7845.2249999999985,"d":"7,845.23 Ft"}}]

{"sheet":"Számla adatai","index":3,"n_rows":40,"n_cols":8,"rows_kept":40}
[]
[null,"Számla adatai"]
[null,"Leírás","Számlaszám","Tétel száma","Menny.","Egységár","Kedvezmény","Összeg"]
[null,"3-456-1. számla 1. adat","3-456-1",1,1,{"v":1,"d":"1.00 Ft"},{"v":1,"d":"1.00 Ft"},{"$f":"(Számlaadatai[[#This Row],[Menny.]]*Számlaadatai[[#This Row],[Egységár]])-Számlaadatai[[#This Row],[Kedvezmény]]","v":{"v":0,"d":"0.00 Ft"}}]
[null,"3-456-1. számla 2. adat","3-456-1",2,2,{"v":2,"d":"2.00 Ft"},{"v":2,"d":"2.00 Ft"},{"$f":"(Számlaadatai[[#This Row],[Menny.]]*Számlaadatai[[#This Row],[Egységár]])-Számlaadatai[[#This Row],[Kedvezmény]]","v":{"v":2,"d":"2.00 Ft"}}]
[null,"3-456-1. számla 3. adat","3-456-1",3,3,{"v":3,"d":"3.00 Ft"},{"v":3,"d":"3.00 Ft"},{"$f":"(Számlaadatai[[#This Row],[Menny.]]*Számlaadatai[[#This Row],[Egységár]])-Számlaadatai[[#This Row],[Kedvezmény]]","v":{"v":6,"d":"6.00 Ft"}}]
[null,"3-456-1. számla 4. adat","3-456-1",4,4,{"v":4,"d":"4.00 Ft"},{"v":4,"d":"4.00 Ft"},{"$f":"(Számlaadatai[[#This Row],[Menny.]]*Számlaadatai[[#This Row],[Egységár]])-Számlaadatai[[#This Row],[Kedvezmény]]","v":{"v":12,"d":"12.00 Ft"}}]
[null,"3-456-1. számla 5. adat","3-456-1",5,5,{"v":5,"d":"5.00 Ft"},{"v":5,"d":"5.00 Ft"},{"$f":"(Számlaadatai[[#This Row],[Menny.]]*Számlaadatai[[#This Row],[Egységár]])-Számlaadatai[[#This Row],[Kedvezmény]]","v":{"v":20,"d":"20.00 Ft"}}]
[null,"3-456-1. számla 6. adat","3-456-1",6,6,{"v":6,"d":"6.00 Ft"},{"v":6,"d":"6.00 Ft"},{"$f":"(Számlaadatai[[#This Row],[Menny.]]*Számlaadatai[[#This Row],[Egységár]])-Számlaadatai[[#This Row],[Kedvezmény]]","v":{"v":30,"d":"30.00 Ft"}}]
[null,"3-456-1. számla 7. adat","3-456-1",7,7,{"v":7,"d":"7.00 Ft"},{"v":7,"d":"7.00 Ft"},{"$f":"(Számlaadatai[[#This Row],[Menny.]]*Számlaadatai[[#This Row],[Egységár]])-Számlaadatai[[#This Row],[Kedvezmény]]","v":{"v":42,"d":"42.00 Ft"}}]
[null,"3-456-1. számla 8. adat","3-456-1",8,8,{"v":8,"d":"8.00 Ft"},{"v":8,"d":"8.00 Ft"},{"$f":"(Számlaadatai[[#This Row],[Menny.]]*Számlaadatai[[#This Row],[Egységár]])-Számlaadatai[[#This Row],[Kedvezmény]]","v":{"v":56,"d":"56.00 Ft"}}]
[null,"3-456-1. számla 9. adat","3-456-1",9,9,{"v":9,"d":"9.00 Ft"},{"v":9,"d":"9.00 Ft"},{"$f":"(Számlaadatai[[#This Row],[Menny.]]*Számlaadatai[[#This Row],[Egységár]])-Számlaadatai[[#This Row],[Kedvezmény]]","v":{"v":72,"d":"72.00 Ft"}}]
[null,"3-456-1. számla 10. adat","3-456-1",10,10,{"v":10,"d":"10.00 Ft"},{"v":10,"d":"10.00 Ft"},{"$f":"(Számlaadatai[[#This Row],[Menny.]]*Számlaadatai[[#This Row],[Egységár]])-Számlaadatai[[#This Row],[Kedvezmény]]","v":{"v":90,"d":"90.00 Ft"}}]
[null,"3-456-1. számla 11. adat","3-456-1",11,11,{"v":11,"d":"11.00 Ft"},{"v":11,"d":"11.00 Ft"},{"$f":"(Számlaadatai[[#This Row],[Menny.]]*Számlaadatai[[#This Row],[Egységár]])-Számlaadatai[[#This Row],[Kedvezmény]]","v":{"v":110,"d":"110.00 Ft"}}]
[null,"3-456-1. számla 12. adat","3-456-1",12,12,{"v":12,"d":"12.00 Ft"},{"v":12,"d":"12.00 Ft"},{"$f":"(Számlaadatai[[#This Row],[Menny.]]*Számlaadatai[[#This Row],[Egységár]])-Számlaadatai[[#This Row],[Kedvezmény]]","v":{"v":132,"d":"132.00 Ft"}}]
[null,"3-456-1. számla 13. adat","3-456-1",13,13,{"v":13,"d":"13.00 Ft"},{"v":13,"d":"13.00 Ft"},{"$f":"(Számlaadatai[[#This Row],[Menny.]]*Számlaadatai[[#This Row],[Egységár]])-Számlaadatai[[#This Row],[Kedvezmény]]","v":{"v":156,"d":"156.00 Ft"}}]
[null,"3-456-1. számla 14. adat","3-456-1",14,14,{"v":14,"d":"14.00 Ft"},{"v":14,"d":"14.00 Ft"},{"$f":"(Számlaadatai[[#This Row],[Menny.]]*Számlaadatai[[#This Row],[Egységár]])-Számlaadatai[[#This Row],[Kedvezmény]]","v":{"v":182,"d":"182.00 Ft"}}]
[null,"3-456-1. számla 15. adat","3-456-1",15,15,{"v":15,"d":"15.00 Ft"},{"v":15,"d":"15.00 Ft"},{"$f":"(Számlaadatai[[#This Row],[Menny.]]*Számlaadatai[[#This Row],[Egységár]])-Számlaadatai[[#This Row],[Kedvezmény]]","v":{"v":210,"d":"210.00 Ft"}}]
[null,"3-456-1. számla 16. adat","3-456-1",16,16,{"v":16,"d":"16.00 Ft"},{"v":16,"d":"16.00 Ft"},{"$f":"(Számlaadatai[[#This Row],[Menny.]]*Számlaadatai[[#This Row],[Egységár]])-Számlaadatai[[#This Row],[Kedvezmény]]","v":{"v":240,"d":"240.00 Ft"}}]
[null,"3-456-1. számla 17. adat","3-456-1",17,17,{"v":17,"d":"17.00 Ft"},{"v":17,"d":"17.00 Ft"},{"$f":"(Számlaadatai[[#This Row],[Menny.]]*Számlaadatai[[#This Row],[Egységár]])-Számlaadatai[[#This Row],[Kedvezmény]]","v":{"v":272,"d":"272.00 Ft"}}]
[null,"3-456-1. számla 18. adat","3-456-1",18,18,{"v":18,"d":"18.00 Ft"},{"v":18,"d":"18.00 Ft"},{"$f":"(Számlaadatai[[#This Row],[Menny.]]*Számlaadatai[[#This Row],[Egységár]])-Számlaadatai[[#This Row],[Kedvezmény]]","v":{"v":306,"d":"306.00 Ft"}}]
[null,"3-456-1. számla 19. adat","3-456-1",19,19,{"v":19,"d":"19.00 Ft"},{"v":19,"d":"19.00 Ft"},{"$f":"(Számlaadatai[[#This Row],[Menny.]]*Számlaadatai[[#This Row],[Egységár]])-Számlaadatai[[#This Row],[Kedvezmény]]","v":{"v":342,"d":"342.00 Ft"}}]
[null,"3-456-1. számla 20. adat","3-456-1",20,20,{"v":20,"d":"20.00 Ft"},{"v":20,"d":"20.00 Ft"},{"$f":"(Számlaadatai[[#This Row],[Menny.]]*Számlaadatai[[#This Row],[Egységár]])-Számlaadatai[[#This Row],[Kedvezmény]]","v":{"v":380,"d":"380.00 Ft"}}]
[null,"3-456-1. számla 21. adat","3-456-1",21,21,{"v":21,"d":"21.00 Ft"},{"v":21,"d":"21.00 Ft"},{"$f":"(Számlaadatai[[#This Row],[Menny.]]*Számlaadatai[[#This Row],[Egységár]])-Számlaadatai[[#This Row],[Kedvezmény]]","v":{"v":420,"d":"420.00 Ft"}}]
[null,"3-456-1. számla 22. adat","3-456-1",22,22,{"v":22,"d":"22.00 Ft"},{"v":22,"d":"22.00 Ft"},{"$f":"(Számlaadatai[[#This Row],[Menny.]]*Számlaadatai[[#This Row],[Egységár]])-Számlaadatai[[#This Row],[Kedvezmény]]","v":{"v":462,"d":"462.00 Ft"}}]
[null,"3-456-1. számla 23. adat","3-456-1",23,23,{"v":23,"d":"23.00 Ft"},{"v":23,"d":"23.00 Ft"},{"$f":"(Számlaadatai[[#This Row],[Menny.]]*Számlaadatai[[#This Row],[Egységár]])-Számlaadatai[[#This Row],[Kedvezmény]]","v":{"v":506,"d":"506.00 Ft"}}]
[null,"3-456-1. számla 24. adat","3-456-1",24,24,{"v":24,"d":"24.00 Ft"},{"v":24,"d":"24.00 Ft"},{"$f":"(Számlaadatai[[#This Row],[Menny.]]*Számlaadatai[[#This Row],[Egységár]])-Számlaadatai[[#This Row],[Kedvezmény]]","v":{"v":552,"d":"552.00 Ft"}}]
[null,"3-456-1. számla 25. adat","3-456-1",25,25,{"v":25,"d":"25.00 Ft"},{"v":25,"d":"25.00 Ft"},{"$f":"(Számlaadatai[[#This Row],[Menny.]]*Számlaadatai[[#This Row],[Egységár]])-Számlaadatai[[#This Row],[Kedvezmény]]","v":{"v":600,"d":"600.00 Ft"}}]
[null,"3-456-2. számla 1. adat","3-456-2","Z4567",39,{"v":5,"d":"5.00 Ft"},null,{"$f":"(Számlaadatai[[#This Row],[Menny.]]*Számlaadatai[[#This Row],[Egységár]])-Számlaadatai[[#This Row],[Kedvezmény]]","v":{"v":195,"d":"195.00 Ft"}}]
[null,"3-456-2. számla 2. adat","3-456-2","Z4568",40,{"v":4,"d":"4.00 Ft"},{"v":5,"d":"5.00 Ft"},{"$f":"(Számlaadatai[[#This Row],[Menny.]]*Számlaadatai[[#This Row],[Egységár]])-Számlaadatai[[#This Row],[Kedvezmény]]","v":{"v":155,"d":"155.00 Ft"}}]
[null,"3-456-2. számla 3. adat","3-456-2","Z4569",30,{"v":6,"d":"6.00 Ft"},{"v":7,"d":"7.00 Ft"},{"$f":"(Számlaadatai[[#This Row],[Menny.]]*Számlaadatai[[#This Row],[Egységár]])-Számlaadatai[[#This Row],[Kedvezmény]]","v":{"v":173,"d":"173.00 Ft"}}]
[null,"3-456-2. számla 4. adat","3-456-2","Z4570",40,{"v":7,"d":"7.00 Ft"},null,{"$f":"(Számlaadatai[[#This Row],[Menny.]]*Számlaadatai[[#This Row],[Egységár]])-Számlaadatai[[#This Row],[Kedvezmény]]","v":{"v":280,"d":"280.00 Ft"}}]
[null,"3-456-2. számla 5. adat","3-456-2","Z4571",10,{"v":4,"d":"4.00 Ft"},null,{"$f":"(Számlaadatai[[#This Row],[Menny.]]*Számlaadatai[[#This Row],[Egységár]])-Számlaadatai[[#This Row],[Kedvezmény]]","v":{"v":40,"d":"40.00 Ft"}}]
[null,"3-456-2. számla 6. adat","3-456-2","Z4572",5,{"v":8,"d":"8.00 Ft"},null,{"$f":"(Számlaadatai[[#This Row],[Menny.]]*Számlaadatai[[#This Row],[Egységár]])-Számlaadatai[[#This Row],[Kedvezmény]]","v":{"v":40,"d":"40.00 Ft"}}]
[null,"3-456-2. számla 7. adat","3-456-2","Z4573",70,{"v":6,"d":"6.00 Ft"},null,{"$f":"(Számlaadatai[[#This Row],[Menny.]]*Számlaadatai[[#This Row],[Egységár]])-Számlaadatai[[#This Row],[Kedvezmény]]","v":{"v":420,"d":"420.00 Ft"}}]
[null,"3-456-2. számla 8. adat","3-456-2","Z4574",25,{"v":4,"d":"4.00 Ft"},null,{"$f":"(Számlaadatai[[#This Row],[Menny.]]*Számlaadatai[[#This Row],[Egységár]])-Számlaadatai[[#This Row],[Kedvezmény]]","v":{"v":100,"d":"100.00 Ft"}}]
[null,"3-456-2. számla 9. adat","3-456-2","Z4575",5,{"v":7,"d":"7.00 Ft"},{"v":3,"d":"3.00 Ft"},{"$f":"(Számlaadatai[[#This Row],[Menny.]]*Számlaadatai[[#This Row],[Egységár]])-Számlaadatai[[#This Row],[Kedvezmény]]","v":{"v":32,"d":"32.00 Ft"}}]
[null,"3-456-2. számla 10. adat","3-456-2","Z4576",80,{"v":1,"d":"1.00 Ft"},null,{"$f":"(Számlaadatai[[#This Row],[Menny.]]*Számlaadatai[[#This Row],[Egységár]])-Számlaadatai[[#This Row],[Kedvezmény]]","v":{"v":80,"d":"80.00 Ft"}}]
[null,"3-456-2. számla 11. adat","3-456-2","Z4577",65,{"v":7,"d":"7.00 Ft"},null,{"$f":"(Számlaadatai[[#This Row],[Menny.]]*Számlaadatai[[#This Row],[Egységár]])-Számlaadatai[[#This Row],[Kedvezmény]]","v":{"v":455,"d":"455.00 Ft"}}]
[null,"3-456-2. számla 12. adat","3-456-2","Z4578",44,{"v":1,"d":"1.00 Ft"},null,{"$f":"(Számlaadatai[[#This Row],[Menny.]]*Számlaadatai[[#This Row],[Egységár]])-Számlaadatai[[#This Row],[Kedvezmény]]","v":{"v":44,"d":"44.00 Ft"}}]

{"sheet":"A számlanyilvántartásról","index":4,"n_rows":40,"n_cols":3,"rows_kept":40,"merged":[[3,1,3,7],[4,1,4,7],[5,1,5,7],[6,1,6,7],[7,2,7,7],[8,2,8,7],[9,2,9,7],[10,2,10,7],[11,2,11,7],[12,1,12,7],[13,2,13,3],[14,2,14,7],[15,1,15,7],[16,2,16,7],[17,2,17,7],[18,2,18,7],[19,2,19,7],[20,2,20,7],[21,2,21,7],[22,1,22,7],[23,1,23,7],[24,2,24,7],[25,2,25,7],[26,2,26,7],[27,2,27,7],[28,1,28,7],[29,1,29,7],[30,2,30,7],[31,2,31,7],[32,2,32,7],[33,2,33,7],[34,2,34,7],[36,2,36,7],[37,2,37,7],[38,2,38,7],[39,2,39,7]]}
[null,"A számlanyilvántartásról"]
[]
[]
[null,"A számlanyilvántartást az ügyfelek, a számlák és a számlák részleteinek feljegyzésére tervezték, hogy Ön több számlát tárolhasson újabb és újabb fájlok létrehozása nélkül. A számlanyilvántartás szolgáltatással a korábban számlázott adatok elemzését is elvégezheti. Megtekintheti például egy ügyfél, egy adott projekt, a múlt hónap vagy a tavalyi év összes számláját és számos egyéb adatot."]
[null,"A kezdés előtt tekintse meg a megadott mintaadatokat. A Számla munkalapon jelölje ki a számla számától jobbra lévő cellát (L8 cella). Ekkor megjelenik egy legördülő lista. Válassza a legördülő lista nyilát, majd válasszon egy minta számlát. Figyelje meg, hogy az összes számlaadat automatikusan megváltozik, a kijelölt számlának megfelelően. Most nézzük meg az Ügyfelek, Számlák – Fő lap és Számlaadatok munkalapokat. Az egyes munkalapok a számlára vonatkozó információkat mutatják, és az elvégzett módosítások is automatikusan frissülnek. "]
[null,"Hogyan kezdjek hozzá?"]
[null,"A következő lépések használatával módosítsa a Számla munkalapot, hogy az tükrözze a cége adatait:"]
[null,"1.","Lépjen a Számla munkalapra, és a Véleményezés lapon, a Védelem csoportban válassza a Lapvédelem feloldása lehetőséget. "]
[null,null,"Megjegyzés: A Számla munkalap védett, ami segít elkerülni a nem szándékos változtatásokat, mivel a korábbiakban már említettek szerint a munkafüzetben lévő adatok többsége az összes többi munkalapból származik. "]
[null,"2.","Testre szabhatja a számla fejlécét, ha beírja a cég nevét, az irányítószámot, a települést, a címet, az e-mail-címet, a webhelyet stb. A számla alsó részén (43. sor) módosítsa a fizetési utasításokat. "]
[null,null,"Fontos! Ne módosítsa a számlázási információkat vagy a számlaadatokat. Az összes ilyen cellában olyan képletek vannak, amelyek automatikusan frissítik a számlát, az A számlanyilvántartásról ismertetése című szakaszban ismertetett módon. "]
[null,"3.","(Választható) A teljes munkafüzet színeinek módosítása: A Lapelrendezés lapon a Témák csoportban válassza a Színek elemet, és válasszon másik színösszeállítást a színgyűjteményből. "]
[null,"Tipp: Hozzon létre egyéni színösszeállítást a cége arculatának megfelelően! Ehhez a Lapelrendezés lap Témák csoportjában válassza a Színek elemet, majd válassza a Színek testreszabása lehetőséget. Ha szeretne többet megtudni az egyéni színkészlet létrehozásáról, tekintse át a következő súgótémakört: "]
[null,null,"Dokumentum témájának testreszabása."]
[null,"4.","A kívánt módosítások elvégzése után térjen vissza a Számla munkalapra, és a Véleményezés lapon a Változások csoportban válassza a Lapvédelem lehetőséget, majd kattintson az OK gombra. Ha a Számla munkalap védett, akkor csak a számla számát tartalmazó legördülő lista celláját tudja kijelölni."]
[null,"Hogyan hozhatok létre számlát?"]
[null,"1.","Az Ügyfelek munkalapon adja meg az ügyfélre vonatkozó információkat, például a cég nevét és címét. Felhívjuk a figyelmét arra, hogy a vállalat száma egy fontos bejegyzés, mivel egyedi azonosítót biztosít az egyes vállalatok számára, amely az egész számlanyilvántartásban használatos. Ne feledje továbbá, hogy csak egyszer kell felvennie a céget. Ugyanannak a vállalatnak a későbbi számláinál ez a lépés kihagyható. "]
[null,null,"Megjegyzés: Ha ugyanazt a számot egynél több vállalathoz rendeli hozzá, vagy ha többször is meg szeretné adni ugyanazt a cégnevet, akkor a bejegyzések pirosra változnak, hogy figyelmeztessék Önt az ismétlődésre. "]
[null,"2.","A Számlák – Fő lapon adja meg a számla elsődleges adatait, például a számla számát, a számla dátumát és a projekt leírását. A vállalat számához hasonlóan a számlaszám is egy fontos bejegyzés, mivel egyedi azonosítót biztosít az egyes számlák számára, amely az egész számlanyilvántartásban használatos. További fontos bejegyzés a vállalat. Ha a megadott legördülő listából kiválaszt egy céget, azzal a számlát az adott vállalathoz társítja. Ezután amikor kijelöl egy számlaszámot a Számla munkalapon, akkor a program automatikusan kitölti a számlán a vállalat adatait, például a cég nevét és címét."]
[null,null,"Megjegyzés: Ha ugyanazt a számot egynél több számlához rendeli hozzá, akkor a bejegyzések pirosra változnak, hogy figyelmeztessék Önt az ismétlődésre. "]
[null,"3.","A Számlaadatok munkalapon adja meg a számla adatait, például a tétel leírását, a tétel számát, a mennyiséget és az egységárat. Az adatbevitel megkönnyítése érdekében a Számlaszám legördülő lista felsorolja azokat a számlákat, amelyeket a Számlák – Fő lapon megadott. Az előző lépésben szereplő vállalatszámhoz hasonlóan a számlaszám is egy adott számlához társítja az adott adatot. Amikor kijelöl egy számlaszámot a Számla munkalapon a Számlaszám legördülő listában, megjelennek az adott számla kapcsolódó számlaadat elemei."]
[null,null,"Megjegyzés: Számlánként legfeljebb 25 adatelemet használhat. Ha több mint 25 elemet vesz fel, az összes vonatkozó bejegyzés pirosra vált, és így figyelmezteti Önt erre a korlátozásra. Ha több mint 25 számlatétele van, akkor egy második számlát kell létrehoznia. "]
[null,"Hogyan vehetek fel több ügyfelet, számlát és számlaadatot?"]
[null,"Az Ügyfelek, Számlák és Számlaadatok adatainak tárolása Excel-táblázatokban történik. Amikor új sort vesz fel a táblázatba, az újonnan hozzáadott sor automatikusan formázott lesz, és a program a számításokat is átmásolja. Új táblázatsorok hozzáadásához végezze el az alábbi műveletek egyikét:"]
[null,"● ","Ha a táblázat nem tartalmaz összesítő sort, kezdjen el gépelni a táblázat alatt, és automatikusan bővülni fog az Enter vagy a Tab billentyű lenyomásakor."]
[null,"● ","Helyezze a kurzort az összesítő sor feletti utolsó cellába, például az utolsó számla Számlák táblázatának Megjegyzések cellájába, majd nyomja le a Tab billentyűt."]
[null,"● ","A Kezdőlap lapon, a Cellák csoportban kattintson a Beszúrás gombra, majd válassza a Táblázatsor fölé vagy Táblázatsor alá parancsot. "]
[null,"● ","Helyezze az egérmutatót a táblázat jobb alsó sarkában megjelenő méretezőpontra, és húzza a pontot lefelé a rendelkezésre álló táblázatsorok számának növeléséhez."]
[null,"Hogyan elemezhetem a számlaadatokat?"]
[null,"Amint azt A számlanyilvántartás ismertetése című szakaszban említettük, több számla beírása után megtekintheti az adott ügyfél, projekt, meghatározott dátumtartomány összes számlájának listáját és számos más adatot. Az ilyen típusú elemzést egy szűrővel végezheti el, amely lehetővé teszi az adatlista gyors csökkentését. Ha az ügyfelek, számlák vagy számlaadatok táblázatok egy szűrőjét szeretné elérni, jelöljön ki egy legördülő lista nyilat a táblázat mezőneve mellett. Egy szűrőpanel jelenik meg, többféle szűrési lehetőséget bemutatva. Íme néhány szűrési példa, amely segítséget nyújt az első lépésekhez:"]
[null,"● ","Ha szeretné megtekinteni a teljes összeget, amelyet egy adott ügyfélnek számlázott, a következőket kell tennie: Válassza a legördülő lista nyilát a Számlák – Fő lapon, a Vállalat száma mezőtől jobbra. A szűrőpanelen kattintson az Az összes kijelölése elemre az összes vállalat kijelölésének megszüntetéséhez, jelölje ki a kívánt céget, majd válassza az OK gombot. "]
[null,null,"Tipp: A Szűrő panelen a Keresés szövegmezőbe beírhatja az ügyfél nevét is, így gyorsan keresheti az elérhető listában."]
[null,"● ","Egy adott ügyfél és adott projekt(ek) összes számlájának megtekintése: Kezdje a kívánt ügyfél szűrésével, az előző példában szereplő lépések használatával. Ezután a Projektszám jobb oldalán válassza a legördülő lista nyilát. A szűrőpanelen jelölje ki a kívánt projektet vagy projekteket, és válassza az OK gombot. "]
[null,"● ","Az előző hónap összes számlájának megtekintése: A Számlák – Fő lapon, a Számla dátuma mezőtől jobbra válassza a legördülő lista nyilát, mutasson a Dátumszűrő elemre, majd válassza a Múlt hónap lehetőséget."]
[null,"● ","Ha az összes olyan ügyfelet meg szeretné tekinteni, akinek a körzetszáma megegyezik: Válassza a legördülő lista nyilát az Ügyfelek lapon, a Telefon mezőtől jobbra. A szűrőpanelen kattintson a Keresés szövegmezőbe, írja be a körzetszámot, majd kattintson az OK gombra. "]
[null,"Tippek szűrése"]
[null,"● ","Ha egy táblázatnak van összesítés sora van (például Ügyfelek és Számlák), a számított összegek csak a szűrt listát tükrözik."]
[null,"● ","Az eredmények finomításához több szűrőt használhat egyetlen mezőn vagy több mező között."]
[null,"● ","Egyetlen szűrő törléséhez válassza egy korábban szűrt oszlop legördülő lista nyilát, és válassza a Szűrö törlése < mezőnév > lehetőséget."]
[null,"● ","Ha egyszerre több szűrőt szeretne törölni, vigye a kurzort a táblázatba, a Kezdőlap lapon a Szerkesztés csoportban válassza a Rendezés és szűrés lehetőséget, majd kattintson a Szűrők törlése."]